bitfinex/quotes_ETHUSD_20230105
["timestamp","ask_amount","ask_price","bid_price","bid_amount"]
[1672941088642,21.64794781,1248.6,1248.5,0.06733018]
[1672941088998,21.64794781,1248.6,1248.5,0.00033018]
[1672941090534,29.65691781,1248.6,1248.5,0.00033018]
[1672941090910,37.66588781,1248.6,1248.5,0.00033018]
[1672941091067,21.64794781,1248.6,1248.5,0.00033018]
[1672941091516,37.66588781,1248.6,1248.5,0.00033018]
[1672941092334,58.4311708,1248.6,1248.5,0.00033018]
[1672941092544,57.23462386,1248.6,1248.5,0.00033018]
[1672941092757,61.90320791,1248.6,1248.5,0.00033018]
[1672941093090,57.71318311,1248.6,1248.5,0.00033018]
[1672941093254,61.90268616,1248.6,1248.5,0.00033018]
[1672941093697,57.71318311,1248.6,1248.5,0.00033018]
[1672941094414,62.66906874,1248.6,1248.5,0.00033018]
[1672941096045,61.89948765,1248.6,1248.5,0.00033018]
[1672941098042,57.98447025,1248.6,1248.5,0.00033018]
[1672941098257,49.496941,1248.6,1248.5,0.00033018]
[1672941098567,45.31063646,1248.6,1248.5,0.00033018]
[1672941098761,49.496941,1248.6,1248.5,0.00033018]
[1672941098946,57.505911,1248.6,1248.5,0.00033018]
[1672941099167,57.24221515,1248.6,1248.5,0.00033018]
[1672941099356,62.19610078,1248.6,1248.5,0.00033018]
[1672941100561,57.24021515,1248.6,1248.5,0.00033018]
[1672941100774,57.50391336,1248.6,1248.5,0.00033018]
[1672941103035,5.26312853,1248.5,1248.4,0.05911331]
[1672941103242,40.98636027,1248.5,1248.4,0.05911331]
[1672941103505,48.99597027,1248.5,1248.4,0.05911331]
[1672941105597,45.49597027,1248.5,1248.4,0.05911331]
[1672941106134,21.46714027,1248.5,1248.4,0.05911331]
[1672941106349,15.19043608,1248.5,1248.4,0.05911331]
[1672941106516,38.61816608,1248.5,1248.4,0.05911331]
[1672941108722,33.61816608,1248.5,1248.4,0.05911331]
[1672941109771,38.61816608,1248.5,1248.4,0.05911331]
[1672941111032,46.62777608,1248.5,1248.4,0.05911331]
[1672941111239,52.6136833,1248.5,1248.4,0.05911331]
[1672941112591,52.61535569,1248.5,1248.4,0.05911331]
[1672941115912,44.02658709,1248.5,1248.4,0.05911331]
[1672941116225,48.21089399,1248.5,1248.4,0.05911331]
[1672941116370,53.21089399,1248.5,1248.4,0.05911331]
[1672941117923,53.81199399,1248.5,1248.4,0.05911331]
[1672941121050,53.21962597,1248.5,1248.4,0.05911331]
[1672941121267,45.20998562,1248.5,1248.4,0.05911331]
[1672941121477,45.80238399,1248.5,1248.4,0.05911331]
[1672941122593,40.80238399,1248.5,1248.4,0.05911331]
[1672941123624,53.81199399,1248.5,1248.4,0.05911331]
[1672941124240,52.04886546,1248.5,1248.4,0.05911331]
[1672941129688,47.04886546,1248.5,1248.4,0.05911331]
[1672941130041,46.44776546,1248.5,1248.4,0.05911331]
[1672941130921,47.26345856,1248.5,1248.4,0.05911331]
[1672941131087,56.13671234,1248.5,1248.4,0.05911331]
[1672941131467,58.21779895,1248.5,1248.4,0.05911331]
[1672941131893,61.21779895,1248.5,1248.4,3.31e-06]
[1672941133347,49.2908208,1248.5,1248.4,3.31e-06]
[1672941133557,24.78343155,1248.5,1248.4,3.31e-06]
[1672941136771,32.79304155,1248.5,1248.4,3.31e-06]
[1672941137557,24.78343155,1248.5,1248.4,3.31e-06]
[1672941137770,32.79304155,1248.5,1248.4,3.31e-06]
[1672941138215,31.03069793,1248.5,1248.4,3.31e-06]
[1672941139086,47.04991793,1248.5,1248.4,3.31e-06]
[1672941141865,26.03069793,1248.5,1248.4,3.31e-06]
[1672941142073,18.02108793,1248.5,1248.4,3.31e-06]
[1672941142391,23.02108793,1248.5,1248.4,3.31e-06]
[1672941143411,20.02108793,1248.5,1248.4,3.31e-06]
[1672941143722,29.45330071,1248.5,1248.4,3.31e-06]
[1672941143880,37.46291071,1248.5,1248.4,3.31e-06]
[1672941149982,32.46291071,1248.5,1248.4,3.31e-06]
[1672941151019,37.46291071,1248.5,1248.4,3.31e-06]
[1672941156287,0.00212964,1248.4,1248.3,0.18757274]
[1672941156498,36.617849,1248.4,1248.3,0.18757274]
[1672941156758,36.63781083,1248.4,1248.3,0.18757274]
[1672941156989,45.24721035,1248.4,1248.3,0.18757274]
[1672941157603,37.23696035,1248.4,1248.3,0.18757274]
[1672941158139,45.24721035,1248.4,1248.3,0.18757274]
[1672941159491,37.23696035,1248.4,1248.3,0.18757274]
[1672941159894,45.24721035,1248.4,1248.3,0.18757274]
[1672941160228,37.23696035,1248.4,1248.3,0.18757274]
[1672941162651,37.23896035,1248.4,1248.3,0.18757274]
[1672941162856,37.23696035,1248.4,1248.3,0.18757274]
[1672941163433,45.24721035,1248.4,1248.3,0.18757274]
[1672941163640,37.23696035,1248.4,1248.3,0.18757274]
[1672941163857,49.8552538,1248.4,1248.3,0.18757274]
[1672941164317,41.8450038,1248.4,1248.3,0.18757274]
[1672941164531,50.0852538,1248.4,1248.3,0.18757274]
[1672941167780,42.0750038,1248.4,1248.3,0.18757274]
[1672941168180,50.0852538,1248.4,1248.3,0.18757274]
[1672941168390,42.0750038,1248.4,1248.3,0.18757274]
[1672941170514,50.0852538,1248.4,1248.3,0.18757274]
[1672941171054,42.0750038,1248.4,1248.3,0.18757274]
[1672941172159,12.81242726,1248.3,1248.2,0.19323755]
[1672941172364,48.06470742,1248.3,1248.2,0.19323755]
[1672941173208,49.56470742,1248.3,1248.2,0.19323755]
[1672941175056,45.97090171,1248.3,1248.2,0.19323755]
[1672941175474,33.54317385,1248.3,1248.2,0.19323755]
[1672941175636,38.16737074,1248.3,1248.2,0.19323755]
[1672941175963,38.76828797,1248.3,1248.2,0.19323755]
[1672941176616,34.5733186,1248.3,1248.2,0.19323755]
[1672941178222,42.5842086,1248.3,1248.2,0.19323755]
[1672941178380,46.77917797,1248.3,1248.2,0.19323755]
[1672941178595,52.25857114,1248.3,1248.2,0.19323755]
[1672941180713,46.77917797,1248.3,1248.2,0.19323755]
[1672941180933,21.91467692,1248.3,1248.2,24.22782755]
[1672941181102,21.91467692,1248.3,1248.2,24.29482755]
[1672941181571,29.92556692,1248.3,1248.2,0.26023755]
[1672941181786,37.93645692,1248.3,1248.2,0.19323755]
[1672941183854,29.92556692,1248.3,1248.2,0.19323755]
[1672941186192,21.91467692,1248.3,1248.2,0.19323755]
[1672941186406,17.92552741,1248.3,1248.2,0.19323755]
[1672941186843,25.93641741,1248.3,1248.2,0.19323755]
[1672941188321,17.92552741,1248.3,1248.2,0.19323755]
[1672941189034,17.92552741,1248.3,1248.2,8.20476755]
[1672941189350,17.92552741,1248.3,1248.2,8.27176755]
[1672941189946,17.92552741,1248.3,1248.2,0.26023755]
[1672941190153,17.92552741,1248.3,1248.2,0.19323755]
[1672941193295,25.93641741,1248.3,1248.2,0.19323755]
[1672941194478,33.94730741,1248.3,1248.2,0.19323755]
[1672941194665,41.95819741,1248.3,1248.2,0.19323755]
[1672941195245,41.95819741,1248.3,1248.2,0.19042023]
[1672941195667,28.94730741,1248.3,1248.2,0.19042023]
[1672941196760,33.94730741,1248.3,1248.2,0.19042023]
[1672941198100,42.61228797,1248.3,1248.2,0.19042023]
[1672941198268,59.46589902,1248.3,1248.2,0.19042023]
[1672941198692,60.06709902,1248.3,1248.2,0.19042023]
[1672941200492,52.05620902,1248.3,1248.2,0.19042023]
[1672941205688,44.04531902,1248.3,1248.2,0.19042023]
[1672941205898,28.02353902,1248.3,1248.2,0.19042023]
[1672941206339,22.74500133,1248.3,1248.2,8.20195023]
[1672941206556,22.74500133,1248.3,1248.2,8.26895023]
[1672941207001,22.74500133,1248.3,1248.2,0.25742023]
[1672941207002,22.14380133,1248.3,1248.2,0.25742023]
[1672941207275,22.14380133,1248.3,1248.2,0.19042023]
[1672941207441,30.15469133,1248.3,1248.2,0.19042023]
[1672941207668,22.14380133,1248.3,1248.2,0.19042023]
[1672941208252,12.83137407,1248.3,1248.1,27.55978683]
[1672941208478,8.98914951,1248.2,1248.1,27.55978683]
[1672941208654,9.00911134,1248.2,1248.1,24.10291]
[1672941208865,9.00911134,1248.2,1248.1,16.09078]
[1672941209333,9.00911134,1248.2,1248.1,24.10295]
[1672941210396,9.05911134,1248.2,1248.1,24.10295]
[1672941210546,9.00911134,1248.2,1248.1,24.10295]
[1672941211505,5.01996183,1248.2,1248.1,24.10295]
[1672941211733,8.01356263,1248.2,1248.1,25.22247786]
[1672941212986,8.61222456,1248.2,1248.1,25.22247786]
[1672941213964,3.61222456,1248.2,1248.1,25.22247786]
[1672941214223,8.59226273,1248.2,1248.1,25.22247786]
[1672941214596,8.61222456,1248.2,1248.1,25.22247786]
[1672941215962,8.01353777,1248.2,1248.1,33.23464786]
[1672941216113,8.01351646,1248.2,1248.1,33.23464786]
[1672941216958,8.01351646,1248.2,1248.1,25.22247786]
[1672941218649,8.61222456,1248.2,1248.1,9.19827786]
[1672941219052,8.61222456,1248.2,1248.1,8.07875]
[1672941219654,8.61222456,1248.2,1248.1,16.09092]
[1672941220652,8.61222456,1248.2,1248.1,8.07875]
[1672941220875,8.61222456,1248.2,1248.1,0.067]
[1672941221103,8.61222456,1248.2,1248.0,24.46011755]
[1672941221339,7.9931061,1248.1,1248.0,33.80860329]
[1672941221526,8.01306793,1248.1,1248.0,33.80860329]
[1672941221738,8.01306793,1248.1,1248.0,33.70860329]
[1672941222072,8.01306793,1248.1,1248.0,0.16023755]
[1672941222418,8.01306793,1248.1,1248.0,0.09323755]
[1672941222864,5.01996183,1248.1,1248.0,0.09323755]
[1672941224158,16.62439456,1248.1,1248.0,0.09323755]
[1672941224337,13.03213183,1248.1,1248.0,0.09323755]
[1672941224545,8.61222456,1248.1,1248.0,0.09323755]
[1672941224756,5.01996183,1248.1,1248.0,0.09323755]
[1672941225761,5.01996183,1248.1,1248.0,8.10605755]
[1672941225936,5.01996183,1248.1,1248.0,0.16023755]
[1672941226146,5.01996183,1248.1,1248.0,0.09323755]
[1672941230476,3.0117468,1248.1,1248.0,0.09323755]
[1672941230827,6.98093448,1248.1,1248.0,0.09323755]
[1672941231051,10.46399463,1248.1,1248.0,0.09323755]
[1672941231362,10.46399463,1248.1,1248.0,8.10605755]
[1672941231671,12.00089631,1248.1,1248.0,8.17305755]
[1672941235364,12.00089631,1248.1,1248.0,16.18587755]
[1672941236385,12.00089631,1248.1,1248.0,0.16023755]
[1672941236616,12.00089631,1248.1,1248.0,16.11887755]
[1672941236829,12.00089631,1248.1,1248.0,16.18587755]
[1672941236977,12.00089631,1248.1,1248.0,24.19869755]
[1672941237497,12.00089631,1248.1,1248.0,8.17305755]
[1672941238510,12.00089631,1248.1,1248.0,16.18587755]
[1672941240247,12.00289631,1248.1,1248.0,16.18287755]
[1672941240487,12.00089631,1248.1,1248.0,16.18587755]
[1672941240698,10.40550203,1248.1,1248.0,28.6041531]
[1672941240981,9.2091099,1248.1,1248.0,36.6169731]
[1672941241192,9.2091099,1248.1,1248.0,28.6041531]
[1672941241856,7.41371706,1248.1,1248.0,28.6041531]
[1672941242532,6.81536981,1248.1,1248.0,33.11746128]
[1672941242714,9.20912504,1248.1,1248.0,31.6041531]
[1672941243442,9.20912504,1248.1,1248.0,23.5913331]
[1672941244240,9.20912504,1248.1,1248.0,31.6041531]
[1672941244448,9.20912504,1248.1,1248.0,23.5913331]
[1672941244692,9.20912504,1248.1,1248.0,31.6041531]
[1672941244903,4.20912504,1248.1,1248.0,31.6041531]
[1672941245234,4.18916321,1248.1,1248.0,31.60171143]
[1672941249971,4.18916321,1248.1,1248.0,39.61453143]
[1672941250120,1.79540798,1248.1,1248.0,39.61453143]
[1672941252713,1.79540798,1248.1,1248.0,31.60171143]
[1672941255012,1.79540798,1248.1,1248.0,39.61453143]
[1672941255231,1.79540798,1248.1,1248.0,31.60171143]
[1672941255444,1.79540798,1248.1,1248.0,39.61453143]
[1672941258222,2.41609117,1248.2,1248.0,39.61453143]
[1672941258223,4.21149915,1248.2,1248.0,39.61453143]
[1672941258434,1.79540798,1248.1,1248.0,39.61453143]
[1672941259032,1.79540798,1248.1,1248.0,15.57607143]
[1672941259228,4.18916321,1248.1,1248.0,3.15779588]
[1672941259441,5.3855402,1248.1,1248.0,3.09079588]
[1672941259628,3.0117468,1248.1,1248.0,0.09079588]
[1672941259850,4.33373458,1248.1,1248.0,0.09079588]
[1672941260726,9.33373458,1248.1,1248.0,0.09079588]
[1672941260879,17.36586641,1248.1,1248.0,0.09079588]
[1672941261097,9.35369641,1248.1,1248.0,0.09079588]
[1672941261425,17.36586641,1248.1,1248.0,0.09079588]
[1672941261845,9.35369641,1248.1,1248.0,0.09079588]
[1672941262634,17.36586641,1248.1,1248.0,0.09079588]
[1672941262985,9.35369641,1248.1,1248.0,0.09079588]
[1672941263237,25.37803641,1248.1,1248.0,0.09079588]
[1672941264417,17.36586641,1248.1,1248.0,0.09079588]
[1672941266173,9.35369641,1248.1,1248.0,0.09079588]
[1672941266363,17.36586641,1248.1,1248.0,0.09079588]
[1672941266574,9.35369641,1248.1,1248.0,0.09079588]
[1672941267229,9.35369641,1248.1,1248.0,8.10361588]
[1672941267454,9.35369641,1248.1,1248.0,0.15779588]
[1672941267618,9.35369641,1248.1,1248.0,0.09079588]
[1672941268280,9.35369641,1248.1,1248.0,0.08742019]
[1672941270340,4.35369641,1248.1,1248.0,0.08742019]
[1672941270554,4.33373458,1248.1,1248.0,0.08742019]
[1672941270764,9.33373458,1248.1,1248.0,0.08742019]
[1672941270969,9.35369641,1248.1,1248.0,0.08742019]
[1672941271943,9.40369641,1248.1,1248.0,0.08742019]
[1672941272271,9.35369641,1248.1,1248.0,0.08742019]
[1672941276851,4.35369641,1248.1,1248.0,0.08742019]
[1672941277126,2.99178497,1248.1,1248.0,8.10024019]
[1672941277286,2.99178497,1248.1,1248.0,8.16724019]
[1672941277759,7.99178497,1248.1,1248.0,0.15442019]
[1672941277931,18.84702016,1248.1,1248.0,0.08742019]
[1672941278147,10.83485016,1248.1,1248.0,0.08742019]
[1672941280656,18.84702016,1248.1,1248.0,0.08742019]
[1672941281288,10.83485016,1248.1,1248.0,0.08742019]
[1672941281841,26.85919016,1248.1,1248.0,0.08742019]
[1672941282005,18.84702016,1248.1,1248.0,0.08742019]
[1672941282426,10.83485016,1248.1,1248.0,0.08742019]
[1672941282697,10.83485016,1248.1,1248.0,8.10024019]
[1672941283008,10.83485016,1248.1,1248.0,8.16724019]
[1672941283749,5.83485016,1248.1,1248.0,8.16724019]
[1672941284114,5.83485016,1248.1,1248.0,16.18006019]
[1672941284325,3.0117468,1248.1,1248.0,16.18006019]
[1672941284569,2.99178497,1248.1,1248.0,16.18006019]
[1672941284744,7.99178497,1248.1,1248.0,16.18006019]
[1672941284951,8.0117468,1248.1,1248.0,16.18006019]
[1672941285849,23.20664912,1248.1,1248.0,16.18006019]
[1672941286219,25.94690772,1248.1,1248.0,16.18006019]
[1672941286885,25.94690772,1248.1,1248.0,24.19288019]
[1672941287301,25.94690772,1248.1,1248.0,16.18006019]
[1672941288685,25.94690772,1248.1,1248.0,8.16372812]
[1672941290406,25.94541548,1248.1,1248.0,8.16372812]
[1672941290520,22.95512275,1248.1,1248.0,8.16372812]
[1672941290728,20.94541349,1248.1,1248.0,8.16372812]
[1672941290935,20.94541349,1248.1,1248.0,16.17654812]
[1672941291840,25.94541349,1248.1,1248.0,16.17654812]
[1672941292062,23.20515489,1248.1,1248.0,16.17654812]
[1672941292210,20.21486415,1248.1,1248.0,16.17654812]
[1672941295771,20.21486415,1248.1,1248.0,8.16372812]
[1672941296200,23.80712688,1248.1,1248.0,8.16372812]
[1672941297190,23.80712688,1248.1,1248.0,24.18936812]
[1672941297491,23.20799782,1248.1,1248.0,24.18936812]
[1672941297715,23.20799782,1248.1,1248.0,32.20218812]
[1672941298145,20.21486415,1248.1,1248.0,24.18936812]
[1672941299774,23.80712688,1248.1,1248.0,24.18936812]
[1672941302468,26.66770392,1248.1,1248.0,24.18936812]
[1672941303613,18.80712688,1248.1,1248.0,24.18936812]
[1672941304500,23.80712688,1248.1,1248.0,24.18936812]
[1672941310498,18.80712688,1248.1,1248.0,24.18936812]
[1672941311600,23.80712688,1248.1,1248.0,24.18671686]
[1672941315036,23.85712688,1248.1,1248.0,24.18671686]
[1672941315245,23.80712688,1248.1,1248.0,24.18671686]
[1672941317437,18.80712688,1248.1,1248.0,24.18671686]
[1672941318509,23.21047095,1248.1,1248.0,24.18671686]
[1672941319996,20.21486415,1248.1,1248.0,24.18671686]
[1672941323355,20.21486415,1248.1,1248.0,16.17389686]
[1672941323575,23.80712688,1248.1,1248.0,16.17389686]
[1672941324647,25.23735649,1248.1,1248.0,8.16107686]
[1672941324954,25.23735649,1248.1,1248.0,0.14825686]
[1672941324955,38.2513658,1248.1,1248.0,0.14825686]
[1672941325142,38.2513742,1248.1,1248.0,0.08125686]
[1672941325528,54.27527389,1248.1,1248.0,0.08125686]
[1672941325744,50.68160376,1248.1,1248.0,0.08125686]
[1672941325976,54.27529118,1248.1,1248.0,0.08125686]
[1672941327270,50.68160376,1248.1,1248.0,0.08125686]
[1672941327500,54.27468767,1248.1,1248.0,0.08125686]
[1672941328153,30.23817767,1248.1,1248.0,32.13253686]
[1672941328490,20.21486415,1248.1,1248.0,32.19953686]
[1672941328718,20.21486415,1248.1,1248.0,24.18671686]
[1672941329354,23.80794806,1248.1,1248.0,24.18671686]
[1672941329730,39.83228806,1248.1,1248.0,0.14825686]
[1672941329939,26.23898028,1248.1,1248.0,0.08125686]
[1672941331533,26.18898028,1248.1,1248.0,0.08125686]
[1672941331757,23.80794806,1248.1,1248.0,0.08125686]
[1672941332182,31.82011806,1248.1,1248.0,0.08125686]
[1672941332391,23.80794806,1248.1,1248.0,0.08125686]
[1672941332580,23.80794806,1248.1,1248.0,0.0787262]
[1672941333616,31.82011806,1248.1,1248.0,0.0787262]
[1672941333882,29.01207721,1248.1,1248.0,0.0787262]
[1672941335104,33.00122672,1248.1,1248.0,0.0787262]
[1672941335335,41.01339672,1248.1,1248.0,0.0787262]
[1672941337056,36.01339672,1248.1,1248.0,0.0787262]
[1672941337612,36.06339672,1248.1,1248.0,0.0787262]
[1672941337824,49.02556672,1248.1,1248.0,0.0787262]
[1672941339438,41.01339672,1248.1,1248.0,0.0787262]
[1672941340610,49.02556672,1248.1,1248.0,0.0787262]
[1672941341141,41.01339672,1248.1,1248.0,0.0787262]
[1672941342829,33.00122672,1248.1,1248.0,0.0787262]
[1672941342971,27.79709757,1248.1,1248.0,0.0787262]
[1672941343896,22.79709757,1248.1,1248.0,0.0787262]
[1672941344327,27.79709757,1248.1,1248.0,0.0787262]
[1672941344895,20.21486415,1248.1,1248.0,16.1043662]
[1672941345104,20.21486415,1248.1,1248.0,24.1841862]
[1672941345696,23.80794806,1248.1,1248.0,24.1841862]
[1672941345900,20.21486415,1248.1,1248.0,24.1841862]
[1672941346274,20.21486415,1248.1,1248.0,0.1457262]
[1672941346275,31.82011806,1248.1,1248.0,0.1457262]
[1672941346481,37.02422621,1248.1,1248.0,0.0787262]
[1672941348500,29.01205621,1248.1,1248.0,0.0787262]
[1672941348920,37.02422621,1248.1,1248.0,0.0787262]
[1672941349729,57.03771572,1248.1,1248.0,0.0787262]
[1672941350786,41.01337572,1248.1,1248.0,0.0787262]
[1672941352066,41.06337572,1248.1,1248.0,0.0787262]
[1672941352252,41.01337572,1248.1,1248.0,0.0787262]
[1672941352937,41.01337572,1248.1,1248.0,0.07574009]
[1672941353151,33.00120572,1248.1,1248.0,0.07574009]
[1672941354992,32.9985185,1248.1,1248.0,0.07574009]
[1672941356182,33.0485185,1248.1,1248.0,0.07574009]
[1672941356361,32.9985185,1248.1,1248.0,0.07574009]
[1672941356576,36.0106885,1248.1,1248.0,0.07574009]
[1672941356815,27.9985185,1248.1,1248.0,0.07574009]
[1672941357739,32.9985185,1248.1,1248.0,0.07574009]
[1672941358161,27.79441035,1248.1,1248.0,0.07574009]
[1672941363705,22.79441035,1248.1,1248.0,0.07574009]
[1672941364862,27.79441035,1248.1,1248.0,0.07574009]
[1672941365017,27.79441035,1248.1,1248.0,8.08856009]
[1672941365227,27.79441035,1248.1,1248.0,8.15556009]
[1672941365430,27.79441035,1248.1,1248.0,0.14274009]
[1672941365637,27.79441035,1248.1,1248.0,0.07574009]
[1672941366382,35.80658035,1248.1,1248.0,0.07574009]
[1672941366602,49.48163173,1248.1,1248.0,0.07574009]
[1672941367880,45.88854782,1248.1,1248.0,0.07574009]
[1672941368098,49.48392459,1248.1,1248.0,0.07574009]
[1672941368268,49.4839169,1248.1,1248.0,0.07574009]
[1672941368600,42.07134719,1248.1,1248.0,0.07574009]
[1672941369990,50.08351719,1248.1,1248.0,0.07574009]
[1672941371866,34.05917719,1248.1,1248.0,0.07574009]
[1672941372213,58.32568719,1248.1,1248.0,0.07574009]
[1672941372589,58.92698719,1248.1,1248.0,0.07574009]
[1672941373244,63.43903469,1248.1,1248.0,0.07574009]
[1672941373455,58.92698719,1248.1,1248.0,0.07574009]
[1672941376678,58.92698719,1248.1,1248.0,0.07336486]
[1672941380528,34.06063327,1248.1,1248.0,0.07336486]
[1672941380837,27.79645189,1248.1,1248.0,8.08618486]
[1672941381110,27.79645189,1248.1,1248.0,8.15318486]
[1672941381645,24.20132644,1248.1,1248.0,8.15318486]
[1672941382553,24.20132644,1248.1,1248.0,16.16600486]
[1672941383641,27.79609512,1248.1,1248.0,0.14036486]
[1672941383857,27.79603856,1248.1,1248.0,16.09900486]
[1672941384064,27.79603856,1248.1,1248.0,16.16600486]
[1672941384478,23.80688905,1248.1,1248.0,8.15318486]
[1672941385384,20.21217693,1248.1,1248.0,0.14036486]
[1672941385695,24.4071463,1248.1,1248.0,0.07336486]
[1672941387124,20.21217693,1248.1,1248.0,8.08618486]
[1672941387318,20.21217693,1248.1,1248.0,24.17882486]
[1672941387528,23.80784587,1248.1,1248.0,16.16600486]
[1672941387790,23.80784587,1248.1,1248.0,8.15318486]
[1672941388011,20.21217693,1248.1,1248.0,8.15318486]
[1672941388375,20.21217693,1248.1,1248.0,0.14036486]
[1672941388643,24.4071463,1248.1,1248.0,0.07336486]
[1672941389630,24.4071463,1248.1,1248.0,8.08618486]
[1672941389862,24.4071463,1248.1,1248.0,8.15318486]
[1672941390851,24.4071463,1248.1,1248.0,0.14036486]
[1672941391007,24.4071463,1248.1,1248.0,0.07336486]
[1672941391216,24.4071463,1248.1,1248.0,8.08618486]
[1672941391426,24.4071463,1248.1,1248.0,8.15318486]
[1672941391638,24.4071463,1248.1,1248.0,16.16600486]
[1672941391639,20.21217693,1248.1,1248.0,16.16600486]
[1672941391859,23.80792369,1248.1,1248.0,8.15318486]
[1672941392071,23.80792369,1248.1,1248.0,16.16600486]
[1672941394158,23.80792369,1248.1,1248.0,24.17882486]
[1672941394367,23.80792369,1248.1,1248.0,16.16600486]
[1672941395558,23.80792369,1248.1,1248.0,8.15318486]
[1672941397553,23.80792369,1248.1,1248.0,8.14974903]
[1672941397775,23.20812227,1248.1,1248.0,10.66176772]
[1672941398100,23.20814846,1248.1,1248.0,26.68740772]
[1672941398884,23.20814846,1248.1,1248.0,18.67458772]
[1672941399215,20.21217693,1248.1,1248.0,18.67458772]
[1672941399654,23.2077599,1248.1,1248.0,26.68740772]
[1672941401556,23.2077599,1248.1,1248.0,34.70022772]
[1672941402454,23.2077599,1248.1,1248.0,26.68740772]
[1672941402683,25.60351614,1248.1,1248.0,34.70022772]
[1672941404410,25.60351614,1248.1,1248.0,26.68740772]
[1672941404932,23.2077599,1248.1,1248.0,26.68740772]
[1672941405483,23.2577599,1248.1,1248.0,26.68740772]
[1672941405688,23.2077599,1248.1,1248.0,26.68740772]
[1672941406637,25.60305469,1248.1,1248.0,26.68740772]
[1672941407267,25.60305469,1248.1,1248.0,16.16256903]
[1672941407429,25.60305469,1248.1,1248.0,0.13692903]
[1672941407430,28.22434693,1248.1,1248.0,0.13692903]
[1672941407650,31.82009369,1248.1,1248.0,0.06992903]
[1672941407896,23.80792369,1248.1,1248.0,0.06992903]
[1672941408258,31.82009369,1248.1,1248.0,0.06992903]
[1672941408468,39.83226369,1248.1,1248.0,0.06992903]
[1672941408903,36.23651693,1248.1,1248.0,0.06992903]
[1672941409363,39.83226369,1248.1,1248.0,0.06992903]
[1672941409570,31.82009369,1248.1,1248.0,0.06992903]
[1672941413798,53.10866141,1248.1,1248.0,0.06992903]
[1672941414013,45.09649141,1248.1,1248.0,0.06992903]
[1672941414326,53.10866141,1248.1,1248.0,0.06992903]
[1672941415355,45.09649141,1248.1,1248.0,0.06992903]
[1672941415524,53.10866141,1248.1,1248.0,0.06992903]
[1672941417058,45.09649141,1248.1,1248.0,0.06992903]
[1672941417417,37.08432141,1248.1,1248.0,0.06992903]
[1672941417961,45.09649141,1248.1,1248.0,0.06992903]
[1672941418148,37.08432141,1248.1,1248.0,0.06992903]
[1672941418793,29.07415141,1248.1,1248.0,0.06992903]
[1672941419021,23.80792369,1248.1,1248.0,0.06992903]
[1672941419457,31.82009369,1248.1,1248.0,0.06992903]
[1672941419667,31.82009369,1248.1,1248.0,0.06694197]
[1672941420184,39.83226369,1248.1,1248.0,0.06694197]
[1672941423059,23.80792369,1248.1,1248.0,0.06694197]
[1672941423216,31.82009369,1248.1,1248.0,0.06694197]
[1672941423426,47.84443369,1248.1,1248.0,0.06694197]
[1672941423687,38.70229541,1248.1,1248.0,0.06694197]
[1672941425248,46.71446541,1248.1,1248.0,0.06694197]
[1672941425433,49.72663541,1248.1,1248.0,0.06694197]
[1672941426295,54.72663541,1248.1,1248.0,0.06694197]
[1672941427373,38.70229541,1248.1,1248.0,0.06694197]
[1672941427559,31.82009369,1248.1,1248.0,0.06694197]
[1672941428782,23.80792369,1248.1,1248.0,0.06694197]
[1672941428997,23.80792369,1248.1,1248.0,24.10540197]
[1672941429228,20.21217693,1248.1,1248.0,24.17240197]
[1672941429641,20.21217693,1248.1,1248.0,16.15958197]
[1672941430219,23.80792369,1248.1,1248.0,16.15958197]
[1672941430564,23.80792369,1248.1,1248.0,8.14676197]
[1672941431257,23.80792369,1248.1,1248.0,16.15958197]
[1672941431947,23.80792369,1248.1,1248.0,32.18522197]
[1672941432390,20.21217693,1248.1,1248.0,24.17240197]
[1672941434794,23.20741739,1248.1,1248.0,24.17240197]
[1672941435262,20.21217693,1248.1,1248.0,24.17240197]
[1672941436166,23.80792369,1248.1,1248.0,24.17240197]
[1672941436546,20.21217693,1248.1,1248.0,24.17240197]
[1672941438010,23.80792369,1248.1,1248.0,8.14676197]
[1672941438586,23.80792369,1248.1,1248.0,0.13394197]
[1672941438903,23.80792369,1248.1,1248.0,0.06694197]
[1672941440266,23.80792369,1248.1,1248.0,0.06480359]
[1672941440687,23.80792369,1248.1,1248.0,8.07762359]
[1672941440936,23.80792369,1248.1,1248.0,8.14462359]
[1672941441731,23.80792369,1248.1,1248.0,0.13180359]
[1672941441998,23.80792369,1248.1,1248.0,0.06480359]
[1672941442526,23.80792369,1248.1,1248.0,8.07762359]
[1672941442737,23.80792369,1248.1,1248.0,0.13180359]
[1672941442897,23.80792369,1248.1,1248.0,0.06480359]
[1672941443321,31.82009369,1248.1,1248.0,0.06480359]
[1672941443585,23.80792369,1248.1,1248.0,0.06480359]
[1672941444155,18.80792369,1248.1,1248.0,0.06480359]
[1672941444811,47.95744716,1248.1,1248.0,0.06480359]
[1672941445018,52.95744716,1248.1,1248.0,0.06480359]
[1672941445791,36.93310716,1248.1,1248.0,0.06480359]
[1672941446363,41.12807653,1248.1,1248.0,0.06480359]
[1672941447269,36.93310716,1248.1,1248.0,0.06480359]
[1672941447479,41.12807653,1248.1,1248.0,0.06480359]
[1672941448784,41.12571106,1248.1,1248.0,0.06480359]
[1672941449015,49.13788106,1248.1,1248.0,0.06480359]
[1672941450485,57.15005106,1248.1,1248.0,0.06480359]
[1672941450974,49.13788106,1248.1,1248.0,0.06480359]
[1672941451466,57.15005106,1248.1,1248.0,0.06480359]
[1672941452059,49.13788106,1248.1,1248.0,0.06480359]
[1672941452498,57.15005106,1248.1,1248.0,0.06480359]
[1672941452881,49.13788106,1248.1,1248.0,0.06480359]
[1672941457573,41.12571106,1248.1,1248.0,0.06480359]
[1672941458617,49.13788106,1248.1,1248.0,0.06480359]
[1672941459759,41.12571106,1248.1,1248.0,0.06480359]
[1672941460677,49.13788106,1248.1,1248.0,0.06480359]
[1672941462418,57.15005106,1248.1,1248.0,0.06480359]
[1672941462571,65.16222106,1248.1,1248.0,0.06480359]
[1672941463581,57.15005106,1248.1,1248.0,0.06480359]
[1672941466492,49.13788106,1248.1,1248.0,0.06480359]
[1672941468402,41.12571106,1248.1,1248.0,0.06480359]
[1672941468797,36.12571106,1248.1,1248.0,0.06480359]
[1672941469013,28.11354106,1248.1,1248.0,0.06480359]
[1672941469316,36.12571106,1248.1,1248.0,0.06480359]
[1672941469469,28.11354106,1248.1,1248.0,0.06480359]
[1672941469854,33.11354106,1248.1,1248.0,0.06480359]
[1672941470274,41.12571106,1248.1,1248.0,0.06480359]
[1672941471388,36.93074169,1248.1,1248.0,0.06480359]
[1672941473329,44.94291169,1248.1,1248.0,0.06480359]
[1672941473536,49.13788106,1248.1,1248.0,0.06201528]
[1672941473991,41.12571106,1248.1,1248.0,0.06201528]
[1672941474204,36.93074169,1248.1,1248.0,0.06201528]
[1672941474425,28.91857169,1248.1,1248.0,0.06201528]
[1672941474637,36.93074169,1248.1,1248.0,0.06201528]
[1672941474810,41.12571106,1248.1,1248.0,0.06201528]
[1672941475766,36.12571106,1248.1,1248.0,0.06201528]
[1672941476901,41.12571106,1248.1,1248.0,0.06201528]
[1672941479650,49.13788106,1248.1,1248.0,0.06201528]
[1672941479908,57.15005106,1248.1,1248.0,0.06201528]
[1672941481013,49.13788106,1248.1,1248.0,0.06201528]